[Event "Early-Titled-Tuesday-Blitz-December-26-2023"]
[Site "Chess.com"]
[Date "2023.12.26"]
[Round "5"]
[White "ilushka"]
[Black "Lion-Al-Messi"]
[Result "1-0"]
[WhiteElo "2470"]
[BlackElo "2612"]
[TimeControl "180+1"]
[EndTime "8:54:54 PST"]
[Termination "ilushka won by resignation"]

1. Nf3 {[%clk 0:02:39]} 1... Nf6 {[%clk 0:02:59.6]} 2. g3 {[%clk 0:02:38.4]}
2... b6 {[%clk 0:02:58.4]} 3. Bg2 {[%clk 0:02:38.2]} 3... Bb7 {[%clk 0:02:58.8]}
4. c4 {[%clk 0:02:38.5]} 4... c5 {[%clk 0:02:57.8]} 5. O-O {[%clk 0:02:38.8]}
5... g6 {[%clk 0:02:56.6]} 6. b3 {[%clk 0:02:38.7]} 6... Bg7 {[%clk 0:02:56.4]}
7. Bb2 {[%clk 0:02:39.2]} 7... O-O {[%clk 0:02:55.7]} 8. d4 {[%clk 0:02:39.5]}
8... cxd4 {[%clk 0:02:54.3]} 9. Qxd4 {[%clk 0:02:40.4]} 9... Nc6 {[%clk
0:02:54.1]} 10. Qf4 {[%clk 0:02:39.8]} 10... Nh5 {[%clk 0:02:47.8]} 11. Qc1
{[%clk 0:02:39.4]} 11... Rc8 {[%clk 0:02:39.1]} 12. Bxg7 {[%clk 0:02:39]} 12...
Nxg7 {[%clk 0:02:38.8]} 13. Rd1 {[%clk 0:02:38.5]} 13... d6 {[%clk 0:02:38.6]}
14. Nc3 {[%clk 0:02:37.4]} 14... Qc7 {[%clk 0:02:36.3]} 15. Qb2 {[%clk
0:02:33.3]} 15... Qb8 {[%clk 0:02:32.6]} 16. Nd5 {[%clk 0:02:30.6]} 16... Qa8
{[%clk 0:02:31.8]} 17. Nd4 {[%clk 0:02:11.1]} 17... Rfe8 {[%clk 0:02:31.9]} 18.
Nb5 {[%clk 0:02:01.1]} 18... Qb8 {[%clk 0:02:31.2]} 19. Rd2 {[%clk 0:01:55.4]}
19... Ne5 {[%clk 0:02:30.1]} 20. Nbc3 {[%clk 0:01:51.1]} 20... Nf5 {[%clk
0:02:22.3]} 21. Rad1 {[%clk 0:01:47.8]} 21... Bc6 {[%clk 0:02:21.8]} 22. Bh3
{[%clk 0:01:47.5]} 22... Bd7 {[%clk 0:02:12.6]} 23. f4 {[%clk 0:01:43.5]} 23...
Nxg3 {[%clk 0:01:01.6]} 24. Bxd7 {[%clk 0:01:30.3]} 24... Nxd7 {[%clk
0:00:59.1]} 25. hxg3 {[%clk 0:01:29.9]} 25... e6 {[%clk 0:00:54.4]} 26. Ne3
{[%clk 0:01:25]} 26... Qc7 {[%clk 0:00:54.4]} 27. Ne4 {[%clk 0:01:12.9]} 27...
Re7 {[%clk 0:00:36.3]} 28. Ng4 {[%clk 0:01:05.2]} 28... e5 {[%clk 0:00:25.2]}
29. fxe5 {[%clk 0:00:55.1]} 29... Nxe5 {[%clk 0:00:20.6]} 30. Ngf6+ {[%clk
0:00:53.4]} 30... Kg7 {[%clk 0:00:19]} 31. Nd5 {[%clk 0:00:53.5]} 31... Qc5+
{[%clk 0:00:18.7]} 32. Nxc5 {[%clk 0:00:52.9]} 1-0

[Event "Early-Titled-Tuesday-Blitz-December-26-2023"]
[Site "Chess.com"]
[Date "2023.12.26"]
[Round "5"]
[White "Vaibhavraut99"]
[Black "MidnightFox"]
[Result "1-0"]
[WhiteElo "2659"]
[BlackElo "2492"]
[TimeControl "180+1"]
[EndTime "8:54:57 PST"]
[Termination "Vaibhavraut99 won on time"]

1. e4 {[%clk 0:03:00.9]} 1... e5 {[%clk 0:02:58]} 2. Nf3 {[%clk 0:02:59.2]} 2...
Nc6 {[%clk 0:02:56.6]} 3. Bb5 {[%clk 0:02:45.8]} 3... a6 {[%clk 0:02:53.9]} 4.
Ba4 {[%clk 0:02:46.1]} 4... Nf6 {[%clk 0:02:53.8]} 5. O-O {[%clk 0:02:45.9]}
5... b5 {[%clk 0:02:54.5]} 6. Bb3 {[%clk 0:02:45.8]} 6... Bc5 {[%clk 0:02:55.2]}
7. d3 {[%clk 0:02:45.8]} 7... O-O {[%clk 0:02:55.6]} 8. c3 {[%clk 0:02:45.9]}
8... d6 {[%clk 0:02:55.8]} 9. h3 {[%clk 0:02:45.9]} 9... h6 {[%clk 0:02:55.1]}
10. Nbd2 {[%clk 0:02:46.3]} 10... Bb7 {[%clk 0:02:52.7]} 11. a4 {[%clk
0:02:43.8]} 11... Bb6 {[%clk 0:02:48.2]} 12. Re1 {[%clk 0:02:41.3]} 12... Ne7
{[%clk 0:02:42.4]} 13. Nf1 {[%clk 0:02:40.9]} 13... Ng6 {[%clk 0:02:40.6]} 14.
Ng3 {[%clk 0:02:40.5]} 14... c6 {[%clk 0:02:27.3]} 15. Nf5 {[%clk 0:02:38.9]}
15... Ra7 {[%clk 0:02:12.7]} 16. Qd2 {[%clk 0:02:30.4]} 16... Bc8 {[%clk
0:02:05.7]} 17. Nxh6+ {[%clk 0:02:29.1]} 17... gxh6 {[%clk 0:02:05.4]} 18. Qxh6
{[%clk 0:02:30]} 18... d5 {[%clk 0:02:01.9]} 19. exd5 {[%clk 0:02:29.5]} 19...
Bf5 {[%clk 0:01:53]} 20. Nxe5 {[%clk 0:02:24]} 20... Nxd5 {[%clk 0:01:31.7]} 21.
Bg5 {[%clk 0:02:14.7]} 21... Qd6 {[%clk 0:01:22.7]} 22. Ng4 {[%clk 0:02:12.2]}
22... Bxg4 {[%clk 0:01:18]} 23. hxg4 {[%clk 0:02:13.1]} 23... Bd8 {[%clk
0:00:53.6]} 24. axb5 {[%clk 0:02:02.6]} 24... cxb5 {[%clk 0:00:43.5]} 25. Qh5
{[%clk 0:01:59.1]} 25... Bxg5 {[%clk 0:00:38]} 26. Qxg5 {[%clk 0:02:00]} 26...
Nf4 {[%clk 0:00:31.2]} 27. d4 {[%clk 0:02:00.5]} 27... Re7 {[%clk 0:00:19.1]}
28. Re3 {[%clk 0:01:56.3]} 28... Rxe3 {[%clk 0:00:17.3]} 29. fxe3 {[%clk
0:01:57.2]} 29... Ne6 {[%clk 0:00:16.7]} 30. Qf6 {[%clk 0:01:53.3]} 30... Qg3
{[%clk 0:00:15.1]} 31. Qf2 {[%clk 0:01:46.6]} 31... Qxg4 {[%clk 0:00:12.8]} 32.
Rxa6 {[%clk 0:01:46.8]} 32... Kg7 {[%clk 0:00:12.1]} 33. d5 {[%clk 0:01:43.3]}
33... Ng5 {[%clk 0:00:12]} 34. Qf6+ {[%clk 0:01:43.1]} 34... Kh6 {[%clk
0:00:12.3]} 35. d6 {[%clk 0:01:37.1]} 35... Ne4 {[%clk 0:00:07.8]} 36. Qf3
{[%clk 0:01:31]} 36... Qh4 {[%clk 0:00:06.4]} 37. d7 {[%clk 0:01:25.9]} 37...
Rd8 {[%clk 0:00:03.9]} 38. Bxf7 {[%clk 0:01:23.6]} 38... Qe1+ {[%clk 0:00:03.7]}
39. Kh2 {[%clk 0:01:23.2]} 39... Qh4+ {[%clk 0:00:04.4]} 40. Qh3 {[%clk
0:01:23.4]} 40... Qxh3+ {[%clk 0:00:04.9]} 41. gxh3 {[%clk 0:01:24.3]} 1-0

[Event "Early-Titled-Tuesday-Blitz-December-26-2023"]
[Site "Chess.com"]
[Date "2023.12.26"]
[Round "5"]
[White "Aradhya2000"]
[Black "sheldons73tshirt"]
[Result "1-0"]
[WhiteElo "2705"]
[BlackElo "2486"]
[TimeControl "180+1"]
[EndTime "8:55:00 PST"]
[Termination "Aradhya2000 won on time"]

1. d4 {[%clk 0:02:52.5]} 1... d5 {[%clk 0:02:59.4]} 2. c4 {[%clk 0:02:51.4]}
2... dxc4 {[%clk 0:03:00.3]} 3. e4 {[%clk 0:02:50.4]} 3... e5 {[%clk 0:02:59]}
4. Nf3 {[%clk 0:02:49.8]} 4... exd4 {[%clk 0:02:59]} 5. Bxc4 {[%clk 0:02:50.4]}
5... Nc6 {[%clk 0:02:59.2]} 6. O-O {[%clk 0:02:50.6]} 6... Be6 {[%clk
0:02:58.8]} 7. Bb5 {[%clk 0:02:50.7]} 7... Bc5 {[%clk 0:02:49.2]} 8. b4 {[%clk
0:02:50.8]} 8... Bb6 {[%clk 0:02:47.7]} 9. Bb2 {[%clk 0:02:50.3]} 9... Nf6
{[%clk 0:02:42.1]} 10. Nxd4 {[%clk 0:02:48]} 10... Bxd4 {[%clk 0:02:30.4]} 11.
Qxd4 {[%clk 0:02:47.2]} 11... O-O {[%clk 0:02:23.2]} 12. Bxc6 {[%clk 0:02:46.6]}
12... bxc6 {[%clk 0:02:21.5]} 13. Qc3 {[%clk 0:02:42.3]} 13... Rb8 {[%clk
0:01:58.8]} 14. Nd2 {[%clk 0:02:36.1]} 14... Qe7 {[%clk 0:01:51.8]} 15. a3
{[%clk 0:01:59]} 15... Rfd8 {[%clk 0:01:50.7]} 16. Nf3 {[%clk 0:01:55.9]} 16...
Bg4 {[%clk 0:01:16.6]} 17. Ne5 {[%clk 0:01:53.1]} 17... Bd7 {[%clk 0:00:47.5]}
18. Rfe1 {[%clk 0:01:43.9]} 18... Be8 {[%clk 0:00:34]} 19. Nxc6 {[%clk
0:01:41.2]} 19... Bxc6 {[%clk 0:00:33.4]} 20. Qxc6 {[%clk 0:01:42.1]} 20... Nh5
{[%clk 0:00:20]} 21. g3 {[%clk 0:01:29.8]} 21... Rd2 {[%clk 0:00:14.8]} 22. Bc3
{[%clk 0:01:19]} 22... Rc2 {[%clk 0:00:13.3]} 23. Rac1 {[%clk 0:01:17.7]} 23...
Rxc1 {[%clk 0:00:12.5]} 24. Rxc1 {[%clk 0:01:18.6]} 24... Rd8 {[%clk 0:00:11.6]}
25. e5 {[%clk 0:01:12.1]} 25... Qg5 {[%clk 0:00:09.8]} 26. Rf1 {[%clk
0:01:04.7]} 26... Nf4 {[%clk 0:00:08.7]} 27. Qxc7 {[%clk 0:01:03.9]} 27... Ne2+
{[%clk 0:00:07.1]} 28. Kg2 {[%clk 0:01:01.2]} 28... Nf4+ {[%clk 0:00:06.5]} 29.
Kh1 {[%clk 0:01:00.8]} 29... Ne2 {[%clk 0:00:04.3]} 30. Qc4 {[%clk 0:00:57.2]}
30... Qh5 {[%clk 0:00:03.4]} 31. g4 {[%clk 0:00:55.5]} 31... Qh3 {[%clk
0:00:01.9]} 32. Qxe2 {[%clk 0:00:55.5]} 1-0

[Event "Early-Titled-Tuesday-Blitz-December-26-2023"]
[Site "Chess.com"]
[Date "2023.12.26"]
[Round "5"]
[White "BilodeauA"]
[Black "ProfessorChess101"]
[Result "1-0"]
[WhiteElo "2882"]
[BlackElo "2600"]
[TimeControl "180+1"]
[EndTime "8:55:05 PST"]
[Termination "BilodeauA won on time"]

1. e4 {[%clk 0:03:00.9]} 1... e5 {[%clk 0:02:54.4]} 2. Nf3 {[%clk 0:03:01]} 2...
Nc6 {[%clk 0:02:53.8]} 3. Bc4 {[%clk 0:03:01.6]} 3... Nf6 {[%clk 0:02:52.9]} 4.
d3 {[%clk 0:03:01.8]} 4... Be7 {[%clk 0:02:53.1]} 5. Nc3 {[%clk 0:03:02]} 5...
O-O {[%clk 0:02:52.5]} 6. O-O {[%clk 0:03:02.1]} 6... d6 {[%clk 0:02:52.5]} 7.
a3 {[%clk 0:02:59.4]} 7... Bg4 {[%clk 0:02:50.7]} 8. h3 {[%clk 0:02:55.9]} 8...
Be6 {[%clk 0:02:43.3]} 9. Nd5 {[%clk 0:02:54]} 9... Re8 {[%clk 0:02:32.6]} 10.
Re1 {[%clk 0:02:51.4]} 10... h6 {[%clk 0:02:29.8]} 11. c3 {[%clk 0:02:47.9]}
11... Bf8 {[%clk 0:02:28.5]} 12. b4 {[%clk 0:02:46.2]} 12... a6 {[%clk
0:02:24.5]} 13. a4 {[%clk 0:02:44.8]} 13... Bxd5 {[%clk 0:02:16.8]} 14. exd5
{[%clk 0:02:44.4]} 14... Ne7 {[%clk 0:02:16.5]} 15. Qb3 {[%clk 0:02:37.8]} 15...
Qd7 {[%clk 0:01:59]} 16. a5 {[%clk 0:02:30.5]} 16... Ng6 {[%clk 0:01:45.9]} 17.
Be3 {[%clk 0:02:27.9]} 17... c6 {[%clk 0:01:36.7]} 18. d4 {[%clk 0:01:55.7]}
18... e4 {[%clk 0:01:29.5]} 19. Nd2 {[%clk 0:01:54.8]} 19... Re7 {[%clk
0:00:58.1]} 20. dxc6 {[%clk 0:01:50]} 20... bxc6 {[%clk 0:00:58]} 21. d5 {[%clk
0:01:50.2]} 21... cxd5 {[%clk 0:00:48.9]} 22. Bxd5 {[%clk 0:01:51.1]} 22... Nxd5
{[%clk 0:00:41.9]} 23. Qxd5 {[%clk 0:01:52]} 23... Rae8 {[%clk 0:00:41.9]} 24.
c4 {[%clk 0:01:44.4]} 24... Re5 {[%clk 0:00:40.5]} 25. Qd4 {[%clk 0:01:44.6]}
25... Qf5 {[%clk 0:00:34.6]} 26. Nf1 {[%clk 0:01:38.5]} 26... Nh4 {[%clk
0:00:28.9]} 27. Ng3 {[%clk 0:01:37.3]} 27... Qg6 {[%clk 0:00:28.8]} 28. Bf4
{[%clk 0:01:33.7]} 28... R5e6 {[%clk 0:00:26.9]} 29. b5 {[%clk 0:01:33.3]} 29...
axb5 {[%clk 0:00:26.6]} 30. cxb5 {[%clk 0:01:34.2]} 30... Rf6 {[%clk 0:00:20.4]}
31. Qe3 {[%clk 0:01:07.3]} 31... d5 {[%clk 0:00:16.3]} 32. Red1 {[%clk
0:01:07.6]} 32... Rd8 {[%clk 0:00:08.1]} 33. a6 {[%clk 0:01:05.4]} 33... d4
{[%clk 0:00:06.8]} 34. Rxd4 {[%clk 0:00:58.6]} 34... Rxd4 {[%clk 0:00:04.6]} 35.
Qxd4 {[%clk 0:00:59.5]} 35... Rxf4 {[%clk 0:00:04]} 36. a7 {[%clk 0:01:00.1]}
1-0

[Event "Early-Titled-Tuesday-Blitz-December-26-2023"]
[Site "Chess.com"]
[Date "2023.12.26"]
[Round "5"]
[White "Road2GM3000"]
[Black "Witik"]
[Result "0-1"]
[WhiteElo "2501"]
[BlackElo "2736"]
[TimeControl "180+1"]
[EndTime "8:55:08 PST"]
[Termination "Witik won by resignation"]

1. d4 {[%clk 0:03:00.9]} 1... Nf6 {[%clk 0:02:59.6]} 2. c4 {[%clk 0:03:01.2]}
2... e6 {[%clk 0:02:58.9]} 3. Nc3 {[%clk 0:03:01.5]} 3... Bb4 {[%clk 0:02:54]}
4. Nf3 {[%clk 0:03:01.9]} 4... c5 {[%clk 0:02:52.6]} 5. g3 {[%clk 0:02:59.4]}
5... O-O {[%clk 0:02:46.1]} 6. Bg2 {[%clk 0:02:59.1]} 6... cxd4 {[%clk
0:02:46.3]} 7. Nxd4 {[%clk 0:02:59]} 7... d5 {[%clk 0:02:46.4]} 8. cxd5 {[%clk
0:02:44.6]} 8... Nxd5 {[%clk 0:02:46.4]} 9. Bd2 {[%clk 0:02:45]} 9... Bxc3
{[%clk 0:02:41.7]} 10. bxc3 {[%clk 0:02:41.8]} 10... e5 {[%clk 0:02:32.1]} 11.
Nb3 {[%clk 0:02:37.1]} 11... Nb6 {[%clk 0:02:03.2]} 12. O-O {[%clk 0:02:33.4]}
12... Qc7 {[%clk 0:01:56.9]} 13. Qc2 {[%clk 0:02:20.4]} 13... Be6 {[%clk
0:01:34.4]} 14. Rac1 {[%clk 0:01:37.2]} 14... Nc4 {[%clk 0:01:33.9]} 15. Rfd1
{[%clk 0:01:31.3]} 15... Nd7 {[%clk 0:01:21.7]} 16. Be1 {[%clk 0:01:30.4]} 16...
Rac8 {[%clk 0:01:16.6]} 17. Nd2 {[%clk 0:01:30.8]} 17... Ndb6 {[%clk 0:01:13.8]}
18. Nf3 {[%clk 0:01:13.8]} 18... h6 {[%clk 0:01:10.5]} 19. Qe4 {[%clk
0:00:56.1]} 19... Rfd8 {[%clk 0:01:08.3]} 20. Nd2 {[%clk 0:00:50.8]} 20... Nb2
{[%clk 0:00:58.5]} 21. Qxb7 {[%clk 0:00:46.1]} 21... Nxd1 {[%clk 0:00:53.6]} 22.
Rxd1 {[%clk 0:00:46.2]} 22... Qxb7 {[%clk 0:00:51.1]} 23. Bxb7 {[%clk
0:00:47.1]} 23... Rxc3 {[%clk 0:00:51.6]} 24. Ra1 {[%clk 0:00:42.3]} 24... Ra3
{[%clk 0:00:45.7]} 25. Ne4 {[%clk 0:00:28.8]} 25... Rxa2 {[%clk 0:00:44.7]} 26.
Rxa2 {[%clk 0:00:28.9]} 26... Bxa2 {[%clk 0:00:45.6]} 27. Bc3 {[%clk 0:00:25.3]}
27... Rd1+ {[%clk 0:00:44.7]} 28. Kg2 {[%clk 0:00:25]} 28... Bd5 {[%clk
0:00:45.6]} 29. Bxd5 {[%clk 0:00:23.9]} 29... Rxd5 {[%clk 0:00:44]} 30. Kf3
{[%clk 0:00:21.8]} 30... Nc4 {[%clk 0:00:39.3]} 31. e3 {[%clk 0:00:16.3]} 31...
a5 {[%clk 0:00:39.4]} 32. Ke2 {[%clk 0:00:16.4]} 32... a4 {[%clk 0:00:39.7]} 33.
Bb4 {[%clk 0:00:16.2]} 33... a3 {[%clk 0:00:39.2]} 34. Nc3 {[%clk 0:00:16.9]}
34... Rd2+ {[%clk 0:00:38.2]} 35. Kf3 {[%clk 0:00:17.6]} 35... a2 {[%clk
0:00:34.3]} 0-1

[Event "Early-Titled-Tuesday-Blitz-December-26-2023"]
[Site "Chess.com"]
[Date "2023.12.26"]
[Round "5"]
[White "Kimster98"]
[Black "Schachmalanders"]
[Result "1-0"]
[WhiteElo "2627"]
[BlackElo "2405"]
[TimeControl "180+1"]
[EndTime "8:55:09 PST"]
[Termination "Kimster98 won by resignation"]

1. e4 {[%clk 0:02:52.6]} 1... c5 {[%clk 0:02:57.6]} 2. Nf3 {[%clk 0:02:52.2]}
2... Nf6 {[%clk 0:02:57.6]} 3. Nc3 {[%clk 0:02:44.4]} 3... d5 {[%clk 0:02:56.2]}
4. exd5 {[%clk 0:02:44.8]} 4... Nxd5 {[%clk 0:02:56.7]} 5. Bb5+ {[%clk
0:02:42.4]} 5... Bd7 {[%clk 0:02:56.9]} 6. Ne5 {[%clk 0:02:31.2]} 6... Bxb5
{[%clk 0:02:49.9]} 7. Qf3 {[%clk 0:02:25]} 7... f6 {[%clk 0:02:36.2]} 8. Nxb5
{[%clk 0:02:15.7]} 8... fxe5 {[%clk 0:02:26.4]} 9. Qxd5 {[%clk 0:02:12.6]} 9...
Qxd5 {[%clk 0:02:26.5]} 10. Nc7+ {[%clk 0:02:12.9]} 10... Kd7 {[%clk 0:02:26.9]}
11. Nxd5 {[%clk 0:02:13.8]} 11... Nc6 {[%clk 0:02:22.9]} 12. O-O {[%clk
0:02:00.6]} 12... e6 {[%clk 0:02:22]} 13. Ne3 {[%clk 0:01:59.4]} 13... Bd6
{[%clk 0:02:13.4]} 14. d3 {[%clk 0:01:58.6]} 14... Rhf8 {[%clk 0:02:04]} 15. Bd2
{[%clk 0:01:47.5]} 15... b5 {[%clk 0:02:03.5]} 16. Rae1 {[%clk 0:01:45.3]} 16...
h5 {[%clk 0:02:00.8]} 17. f3 {[%clk 0:01:43.7]} 17... Nd4 {[%clk 0:01:55.8]} 18.
Bc3 {[%clk 0:01:40.1]} 18... a5 {[%clk 0:01:39.5]} 19. Rf2 {[%clk 0:01:38.7]}
19... a4 {[%clk 0:01:39.2]} 20. Nf1 {[%clk 0:01:26]} 20... Rac8 {[%clk
0:01:30.7]} 21. Ng3 {[%clk 0:01:24.9]} 21... g6 {[%clk 0:01:25.9]} 22. Ne4
{[%clk 0:01:24]} 22... b4 {[%clk 0:01:24]} 23. Bxd4 {[%clk 0:01:05.1]} 23...
cxd4 {[%clk 0:01:24.9]} 24. b3 {[%clk 0:01:00.7]} 24... axb3 {[%clk 0:01:23.2]}
25. axb3 {[%clk 0:01:01.6]} 25... Ra8 {[%clk 0:01:20.5]} 26. Nd2 {[%clk
0:01:00.7]} 26... Be7 {[%clk 0:01:02.3]} 27. Nc4 {[%clk 0:00:53.9]} 27... Bd6
{[%clk 0:00:59]} 28. Rfe2 {[%clk 0:00:48.6]} 28... Rf5 {[%clk 0:00:59]} 29. Kf2
{[%clk 0:00:29.3]} 29... Ra2 {[%clk 0:00:55.3]} 30. Rc1 {[%clk 0:00:28]} 30...
Kc6 {[%clk 0:00:51.4]} 31. Ree1 {[%clk 0:00:27.9]} 31... Kd5 {[%clk 0:00:51.1]}
32. Ke2 {[%clk 0:00:28.2]} 32... Rf8 {[%clk 0:00:48.1]} 33. Kd2 {[%clk
0:00:25.4]} 33... g5 {[%clk 0:00:42.5]} 34. Ra1 {[%clk 0:00:21.1]} 34... Rfa8
{[%clk 0:00:41.6]} 35. Nb6+ {[%clk 0:00:20.2]} 35... Kc6 {[%clk 0:00:38.1]} 36.
Nxa8 {[%clk 0:00:21.1]} 1-0

[Event "Early-Titled-Tuesday-Blitz-December-26-2023"]
[Site "Chess.com"]
[Date "2023.12.26"]
[Round "5"]
[White "MANOJ_MISHRA123"]
[Black "Kaissa10"]
[Result "1-0"]
[WhiteElo "2292"]
[BlackElo "2081"]
[TimeControl "180+1"]
[EndTime "8:55:14 PST"]
[Termination "MANOJ_MISHRA123 won by resignation"]

1. e4 {[%clk 0:03:00.9]} 1... c5 {[%clk 0:02:59.5]} 2. b4 {[%clk 0:02:59]} 2...
cxb4 {[%clk 0:02:56.8]} 3. a3 {[%clk 0:02:58.6]} 3... Nc6 {[%clk 0:02:56.6]} 4.
axb4 {[%clk 0:02:58.2]} 4... Nxb4 {[%clk 0:02:56.3]} 5. c3 {[%clk 0:02:58.8]}
5... Nc6 {[%clk 0:02:55.9]} 6. d4 {[%clk 0:02:59.4]} 6... d5 {[%clk 0:02:56.6]}
7. e5 {[%clk 0:02:52.4]} 7... g6 {[%clk 0:02:55.4]} 8. h4 {[%clk 0:02:47.9]}
8... Bg7 {[%clk 0:02:53.6]} 9. h5 {[%clk 0:02:48]} 9... Qc7 {[%clk 0:02:42.2]}
10. Na3 {[%clk 0:02:44.9]} 10... Bf5 {[%clk 0:01:51]} 11. g4 {[%clk 0:02:39.4]}
11... Be6 {[%clk 0:01:47.1]} 12. h6 {[%clk 0:02:37]} 12... Bf8 {[%clk
0:01:47.2]} 13. Bd3 {[%clk 0:02:26.1]} 13... Nxe5 {[%clk 0:01:40.2]} 14. Nb5
{[%clk 0:02:04.4]} 14... Nxd3+ {[%clk 0:01:39.9]} 15. Qxd3 {[%clk 0:02:05.3]}
15... Qb6 {[%clk 0:01:20.5]} 16. Bf4 {[%clk 0:02:03.1]} 16... Rc8 {[%clk
0:01:12.7]} 17. Rxa7 {[%clk 0:01:45.9]} 17... Bd7 {[%clk 0:00:58.6]} 18. Ra8
{[%clk 0:01:35.7]} 18... Bxb5 {[%clk 0:00:22]} 19. Rxc8+ {[%clk 0:01:31.4]}
19... Kd7 {[%clk 0:00:22.3]} 20. Rc7+ {[%clk 0:00:24.4]} 20... Qxc7 {[%clk
0:00:22.2]} 21. Qxb5+ {[%clk 0:00:24.2]} 21... Qc6 {[%clk 0:00:22.7]} 22. Qb4
{[%clk 0:00:23.2]} 22... Nf6 {[%clk 0:00:19.7]} 23. Nf3 {[%clk 0:00:22.1]} 23...
Ne4 {[%clk 0:00:17.6]} 24. Ne5+ {[%clk 0:00:21.2]} 1-0

[Event "Early-Titled-Tuesday-Blitz-December-26-2023"]
[Site "Chess.com"]
[Date "2023.12.26"]
[Round "5"]
[White "LileKoridze"]
[Black "HajiyevKanan"]
[Result "1/2-1/2"]
[WhiteElo "2382"]
[BlackElo "2596"]
[TimeControl "180+1"]
[EndTime "8:55:20 PST"]
[Termination "Game drawn by repetition"]

1. d4 {[%clk 0:03:00.9]} 1... c6 {[%clk 0:03:00.9]} 2. c4 {[%clk 0:03:00.8]}
2... d5 {[%clk 0:03:01.8]} 3. Nf3 {[%clk 0:03:00.5]} 3... a6 {[%clk 0:03:02.1]}
4. e3 {[%clk 0:02:59.8]} 4... Nf6 {[%clk 0:03:02.7]} 5. Nc3 {[%clk 0:02:59.6]}
5... Bg4 {[%clk 0:03:02.8]} 6. Be2 {[%clk 0:02:59.6]} 6... e6 {[%clk 0:03:02.9]}
7. O-O {[%clk 0:02:59.5]} 7... Bd6 {[%clk 0:03:02.8]} 8. h3 {[%clk 0:02:59.7]}
8... Bh5 {[%clk 0:03:02.7]} 9. Bd3 {[%clk 0:02:55.1]} 9... O-O {[%clk
0:03:01.9]} 10. e4 {[%clk 0:02:55.3]} 10... dxe4 {[%clk 0:02:59.8]} 11. Nxe4
{[%clk 0:02:55.4]} 11... Nxe4 {[%clk 0:03:00.6]} 12. Bxe4 {[%clk 0:02:56.3]}
12... Nd7 {[%clk 0:03:00.4]} 13. b3 {[%clk 0:02:55.9]} 13... e5 {[%clk
0:02:50.2]} 14. Bb2 {[%clk 0:02:54.5]} 14... exd4 {[%clk 0:02:44]} 15. Qxd4
{[%clk 0:02:53.6]} 15... Qf6 {[%clk 0:02:29.3]} 16. Qd2 {[%clk 0:02:08.6]} 16...
Qf4 {[%clk 0:02:20.8]} 17. Rad1 {[%clk 0:02:01.8]} 17... Bxf3 {[%clk 0:00:54]}
18. Qxf4 {[%clk 0:01:48.7]} 18... Bxf4 {[%clk 0:00:53.9]} 19. Bxf3 {[%clk
0:01:49.2]} 19... Ne5 {[%clk 0:00:48.8]} 20. Bxe5 {[%clk 0:01:46]} 20... Bxe5
{[%clk 0:00:49]} 21. Rd7 {[%clk 0:01:46.7]} 21... Rab8 {[%clk 0:00:44.8]} 22.
Rfd1 {[%clk 0:01:46.8]} 22... Bf6 {[%clk 0:00:39.9]} 23. b4 {[%clk 0:01:36.9]}
23... Rfd8 {[%clk 0:00:36.7]} 24. b5 {[%clk 0:01:31.1]} 24... Rxd7 {[%clk
0:00:34]} 25. Rxd7 {[%clk 0:01:30.6]} 25... axb5 {[%clk 0:00:32.4]} 26. cxb5
{[%clk 0:01:31.5]} 26... cxb5 {[%clk 0:00:31.7]} 27. Rxb7 {[%clk 0:01:30.3]}
27... Rxb7 {[%clk 0:00:32]} 28. Bxb7 {[%clk 0:01:31.2]} 28... Kf8 {[%clk
0:00:30.2]} 29. Bc6 {[%clk 0:01:27.1]} 29... b4 {[%clk 0:00:30.6]} 30. Kf1
{[%clk 0:01:27.1]} 30... Bd4 {[%clk 0:00:31.3]} 31. Ke2 {[%clk 0:01:27]} 31...
Ke7 {[%clk 0:00:31.8]} 32. f3 {[%clk 0:01:27.5]} 32... f6 {[%clk 0:00:32.1]} 33.
Kd3 {[%clk 0:01:27.4]} 33... Bc3 {[%clk 0:00:32.1]} 34. Bd5 {[%clk 0:01:27.4]}
34... Kd6 {[%clk 0:00:31.9]} 35. Bg8 {[%clk 0:01:27.7]} 35... h6 {[%clk
0:00:32.2]} 36. Ke2 {[%clk 0:01:27.4]} 36... Kc5 {[%clk 0:00:32]} 37. Kf1 {[%clk
0:01:27.5]} 37... Kd4 {[%clk 0:00:32.4]} 38. Bf7 {[%clk 0:01:27.7]} 38... Ke3
{[%clk 0:00:32.6]} 39. Bg8 {[%clk 0:01:27.7]} 39... g5 {[%clk 0:00:32.9]} 40.
Bf7 {[%clk 0:01:27.9]} 40... Kf4 {[%clk 0:00:33]} 41. Be6 {[%clk 0:01:26.7]}
41... h5 {[%clk 0:00:32.9]} 42. Bf7 {[%clk 0:01:26.7]} 42... h4 {[%clk 0:00:33]}
43. Be6 {[%clk 0:01:26.6]} 43... Ke5 {[%clk 0:00:33.2]} 44. Bg8 {[%clk
0:01:26.4]} 44... f5 {[%clk 0:00:33.5]} 45. Bh7 {[%clk 0:01:24.4]} 45... Bd2
{[%clk 0:00:32.2]} 46. Bg8 {[%clk 0:01:24.3]} 46... Bf4 {[%clk 0:00:32.8]} 47.
Bb3 {[%clk 0:01:24.2]} 47... Bg3 {[%clk 0:00:32.7]} 48. Bg8 {[%clk 0:01:24]}
48... Kf4 {[%clk 0:00:30.4]} 49. Bb3 {[%clk 0:01:24.2]} 49... Ke3 {[%clk
0:00:29.6]} 50. Be6 {[%clk 0:01:23.8]} 50... Kf4 {[%clk 0:00:28.9]} 51. Bb3
{[%clk 0:01:24]} 51... Ke5 {[%clk 0:00:29.1]} 52. Bg8 {[%clk 0:01:24.1]} 52...
Bf4 {[%clk 0:00:29.7]} 53. Bb3 {[%clk 0:01:24.1]} 53... Be3 {[%clk 0:00:30.3]}
54. Bg8 {[%clk 0:01:23.6]} 54... Bc5 {[%clk 0:00:30.9]} 55. Bb3 {[%clk
0:01:23.5]} 55... f4 {[%clk 0:00:31.4]} 56. Bg8 {[%clk 0:01:23]} 56... Kd4
{[%clk 0:00:32]} 57. Bb3 {[%clk 0:01:23]} 57... Kc3 {[%clk 0:00:32.7]} 58. Bg8
{[%clk 0:01:23.1]} 58... Kd2 {[%clk 0:00:33]} 59. Bb3 {[%clk 0:01:23.2]} 59...
Kc3 {[%clk 0:00:33.4]} 60. Bg8 {[%clk 0:01:17.1]} 60... Kb2 {[%clk 0:00:33.7]}
61. Bb3 {[%clk 0:01:14.3]} 61... Bd4 {[%clk 0:00:33.2]} 62. Bg8 {[%clk
0:01:14.4]} 62... Bc5 {[%clk 0:00:34.1]} 63. Bb3 {[%clk 0:01:14.3]} 63... Bd4
{[%clk 0:00:35]} 64. Bg8 {[%clk 0:01:13.3]} 64... Bc5 {[%clk 0:00:35.9]} 1/2-1/2